Cogmind - Beta 14 @@@ ROGUE MODE // 2025.03.15 @ 18:56:47 Player: BoomBlip Result: Destroyed by Y-72 Warden with Railgun Performance ------------- Evolutions (7) 3500 Regions Visited (20) 4000 Robots Destroyed (73) 365 Value Destroyed (2643) 2643 Prototype IDs (35) 700 Alien Tech Used (0) 0 Bonus (708) 708 TOTAL SCORE: 11916 Bonus ------- High Alert Combat Kills 53 Follower Combat Kills 128 Aligned with FarCom 300 Met Data Miner 300 Friendly Fire -73 Cogmind --------- Core Integrity 0/1300 Matter 235/300 Energy 100/100 System Corruption 24% Temperature Cool (9) Movement Core (50) Location -3/Research Parts ------- > --- POWER (1) -------- (None) > --- PROPULSION (4) --- (None) > --- UTILITY (13) ----- (None) > --- WEAPON (3) ------- (None) > --- INVENTORY (5) ---- Antigrav Array Layered Heavy Armor Plating Heavy Flak Cannon Peak State ------------ > --- POWER ------------ Neutrino Core > --- PROPULSION ------- Wheel Wheel Compact Wheel Compact Wheel > --- UTILITY ---------- Advanced Heat Sink Huge Storage Unit Enhanced Optical Array 0b10 Alert Chip Advanced Targeting Computer Tactical Coordination Suite Advanced Transmission Jammer Improved Light Armor Plating Layered Medium Armor Plating Makeshift Hacking Suite System Shield High-powered Tractor Beam > --- WEAPON ----------- KE Penetrator Mini Assault Cannon Magnetic Acceleration Cannon > --- INVENTORY -------- Improved Deuterium Engine Fission Core Light Fission Core Improved Treads Improved Medium Treads Wheel Antigrav Array Improved Cesium-ion Thruster Coolant Injector Large Storage Unit Improved Medium Armor Plating Layered Heavy Armor Plating Arc Projector Gatling Laser KE Penetrator KE Penetrator KE Penetrator Heavy Flak Cannon Heavy Flak Cannon Heavy Flak Cannon Precision Rocket Launcher Mining Claw Spear [Rating: 87] Favorites ----------- Power Light Angular Momentum Engine Engine Light Angular Momentum Engine Power Core Nuclear Core Propulsion Wheel Treads Light Treads Leg Aluminum Leg Wheel Wheel Flight Unit Nuclear Pulse Thruster Utility 0b10 Alert Chip Device Advanced Heat Sink Storage Large Storage Unit Processor 0b10 Alert Chip Hackware System Shield Protection Improved Light Armor Plating Weapon Particle Gun Energy Gun Particle Gun Ballistic Gun Flak Gun Ballistic Cannon Magnetic Acceleration Cannon Launcher EMP Blaster Piercing Weapon Spear Build | -11 -10 -10 -10 -9 -8 -7 -7 -7 -7 -6 -6 -6 -6 -6 -6 -5 -4 -4 -4 -3 ------- Run | Yrd Mat Min Exi Min Mat Fac Low Low Dat Pro Fac Was Fac Low Low Fac Fac Upp Upp Res Slots Evolved 14 | . . . . . 4 2 . . . . 2 . . . . 2 2 . . 2 Power . | . . . . . . . . . . . . . . . . . . . . . Propulsion 2 | . . . . . 2 . . . . . . . . . . . . . . . Utility 11 | . . . . . 2 2 . . . . 2 . . . . 1 2 . . 2 Weapon 1 | . . . . . . . . . . . . . . . . 1 . . . . Parts Attached 145 | . . 10 . 1 24 19 5 14 . 6 24 . 25 . 1 6 3 . . 7 Power 19 | . . 2 . . 5 2 1 2 . 1 1 . 3 . . 1 . . . 1 Engine 8 | . . 2 . . 3 . . . . . 1 . 2 . . . . . . . Core 11 | . . . . . 2 2 1 2 . 1 . . 1 . . 1 . . . 1 Reactor . | . . . . . . . . . . . . . . . . . . . . . Propulsion 39 | . . 2 . 1 7 6 . 5 . . 7 . 5 . 1 3 . . . 2 Treads 9 | . . . . . . . . 5 . . 1 . 1 . . . . . . 2 Leg . | . . . . . . . . . . . . . . . . . . . . . Wheel 29 | . . 2 . 1 7 6 . . . . 5 . 4 . 1 3 . . . . Hover . | . . . . . . . . . . . . . . . . . . . . . Flight 1 | . . . . . . . . . . . 1 . . . . . . . . . Utility 39 | . . 1 . . 9 4 1 2 . 1 8 . 8 . . 1 3 . . 1 Device 11 | . . . . . 2 3 . . . . 1 . 2 . . 1 1 . . 1 Storage 5 | . . . . . 2 . . . . . 1 . 2 . . . . . . . Processor 4 | . . . . . 1 1 . . . . 1 . 1 . . . . . . . Hackware 5 | . . 1 . . . . 1 . . . 1 . 1 . . . 1 . . . Protection 14 | . . . . . 4 . . 2 . 1 4 . 2 . . . 1 . . . Artifact . | . . . . . . . . . . . . . . . . . . . . . Weapon 48 | . . 5 . . 3 7 3 5 . 4 8 . 9 . . 1 . . . 3 Energy Gun 15 | . . 4 . . 1 . 3 2 . 3 . . 2 . . . . . . . Energy Cannon . | . . . . . . . . . . . . . . . . . . . . . Ballistic Gun 18 | . . 1 . . 1 7 . 1 . 1 1 . 2 . . 1 . . . 3 Ballistic Cannon 9 | . . . . . 1 . . . . . 5 . 3 . . . . . . . Launcher 2 | . . . . . . . . 2 . . . . . . . . . . . . Special Weapon . | . . . . . . . . . . . . . . . . . . . . . Impact Weapon . | . . . . . . . . . . . . . . . . . . . . . Slashing Weapon . | . . . . . . . . . . . . . . . . . . . . . Piercing Weapon 4 | . . . . . . . . . . . 2 . 2 . . . . . . . Special Melee Weapon . | . . . . . . . . . . . . . . . . . . . . . Unidentified Prototypes 2 | . . . . . 1 . . . . . . . 1 . . . . . . . Corrupted Parts 1 | . . . . . . . . 1 . . . . . . . . . . . . System Corruption 3 | . . . . . . . . 3 . . . . . . . . . . . . Parts Lost 84 | . . 3 . . 14 12 2 9 . 9 14 . . . . 1 . . . 20 Power 11 | . . 1 . . 3 1 1 1 . 1 1 . . . . . . . . 2 Propulsion 30 | . . 1 . . 4 6 1 5 . 2 5 . . . . . . . . 6 Utility 24 | . . . . . 5 . . 1 . 2 7 . . . . 1 . . . 8 Weapon 19 | . . 1 . . 2 5 . 2 . 4 1 . . . . . . . . 4 Highest Loss Streak 20 | . . 1 . . 9 4 2 3 . 9 9 . . . . 1 . . . 20 To Critical Strikes . | . . . . . . . . . . . . . . . . . . . . . Average Slot Usage (%) 86 | . 85 95 100 100 80 92 94 88 84 78 73 20 82 100 100 96 100 100 100 66 Engine 4 | . 14 13 14 14 3 . . . . . 4 . 5 6 6 5 . . . . Core 2 | . . . . . 4 7 7 6 7 6 . . . . . . 5 5 5 3 Treads 3 | . . . . . . . . 21 23 20 1 . . . . . . . . . Leg 1 | . 28 16 . . . . . . . . . . . . . . . . . . Wheel 17 | . . 10 28 28 23 25 24 3 . . 12 . 23 26 26 23 21 21 21 11 Device 5 | . . . . . 8 13 14 2 . . 2 . 3 6 6 11 15 15 15 11 Storage 9 | . 14 14 14 14 10 15 15 15 15 13 4 . 5 6 6 5 5 5 5 3 Processor 11 | . . . . . . 14 15 15 15 15 13 13 17 20 20 17 15 15 15 9 Hackware 6 | . . 12 14 14 4 . . 7 7 7 7 . 4 6 6 5 10 10 10 7 Protection 5 | . . . . . 6 . . 3 7 6 13 . 6 13 13 8 10 10 10 5 Energy Gun 7 | . 14 18 28 28 14 . 14 10 7 6 . . 1 . . . . . . . Ballistic Gun 3 | . 14 7 . . 1 13 . . . . . . 3 . . 4 5 5 5 3 Ballistic Cannon 3 | . . . . . 1 . . . . . 7 . 4 13 13 11 10 10 10 6 Peak Build Rating 87 | . 6 12 13 14 36 32 31 32 30 32 52 18 57 58 58 68 78 79 79 87 Average Rating 35 | . 6 9 12 13 27 28 28 30 30 28 41 18 44 57 57 64 77 78 79 62 On Entrance 34 | 6 6 6 12 13 14 19 25 31 30 30 13 18 18 57 58 58 65 78 79 79 Naked Turns 45 | . . . . . . . . . . . . . . . . . . . . 45 Heaviest Build 130 | 14 14 14 14 14 40 41 37 37 36 39 44 . 113 113 113 119 129 129 129 130 Greatest Support 60 | 20 20 26 26 32 60 40 40 60 60 60 40 6 58 58 58 58 52 52 52 52 Greatest Overweight (x) 9 | . . 1 . . 9 3 1 1 . . 3 . 2 1 2 2 2 2 2 8 Average Overweight (x) . | . . . . . . . . . . . . . . 1 1 1 2 2 2 1 Largest Inventory Capacity 25 | . 8 8 8 8 15 15 15 15 15 15 8 5 25 25 25 25 25 25 25 25 Average Capacity 14 | . 8 8 8 8 14 15 15 15 15 14 7 5 18 25 25 25 25 25 25 21 Most Carried 25 | . 6 8 8 8 15 15 15 15 11 12 8 5 23 25 25 25 24 24 24 25 Average Carried 12 | . 6 6 7 7 10 13 12 11 11 10 6 5 12 24 25 24 22 22 24 20 Final Capacity 25 | 8 8 8 8 8 15 15 15 15 15 5 5 5 25 25 25 25 25 25 25 5 Final Carried 25 | 6 6 8 7 8 15 15 15 11 11 5 5 5 23 25 25 25 22 24 24 5 Class Distribution -------------------- 33% | Scavenger-Mutant 33% | Scavenger-Skirmisher 9% | Mutant 5% | Skirmisher 5% | Assassin 3% | Scavenger-Tank 3% | Scavenger-Assassin Dominant Class ---------------- Mutant | -10/Materials Mutant | -10/Mines Scavenger-Mutant | -10/Exiles Scavenger-Mutant | -9/Mines Scavenger-Skirmisher | -8/Materials Scavenger-Skirmisher | -7/Factory Scavenger-Skirmisher | -7/Lower Caves Scavenger-Mutant | -7/Lower Caves Scavenger-Mutant | -7/Data Miner Scavenger-Mutant | -6/Proximity Caves Skirmisher | -6/Factory Scout | -6/Waste Scavenger-Skirmisher | -6/Factory Scavenger-Mutant | -6/Lower Caves Scavenger-Mutant | -6/Lower Caves Scavenger-Mutant | -5/Factory Scavenger-Skirmisher | -4/Factory Scavenger-Tank | -4/Upper Caves Scavenger-Tank | -4/Upper Caves Scavenger-Skirmisher | -3/Research Resources | -11 -10 -10 -10 -9 -8 -7 -7 -7 -7 -6 -6 -6 -6 -6 -6 -5 -4 -4 -4 -3 ----------- Run | Yrd Mat Min Exi Min Mat Fac Low Low Dat Pro Fac Was Fac Low Low Fac Fac Upp Upp Res Matter Collected 2753 | 182 . 199 . . 301 328 45 210 . 47 375 . 589 198 . 109 . 142 . 28 Remotely 251 | . . . . . . . . . . . . . . . . 109 . 142 . . Salvage Created 2827 | . . 302 . 29 482 248 85 579 . 46 184 . 555 49 . 85 . 139 . 44 Parts 156 | . . 23 . 5 40 18 4 22 . 1 13 . 19 1 . 6 . 4 . . Haulers Intercepted 1 | . . . . . . . . . . . . . 1 . . . . . . . Recyclers Shooed 3 | . . 1 . . . . . . . . 2 . . . . . . . . . Parts Field Recycled . | . . . . . . . . . . . . . . . . . . . . . Retrieved Matter . | . . . . . . . . . . . . . . . . . . . . . Parts Self-Destructed 23 | . . . . . . . 1 11 . 7 . . . . . . . 4 . . Prevented 17 | . . . . . . . 2 12 . 1 . . . 2 . . . . . . Kills | -11 -10 -10 -10 -9 -8 -7 -7 -7 -7 -6 -6 -6 -6 -6 -6 -5 -4 -4 -4 -3 ------- Run | Yrd Mat Min Exi Min Mat Fac Low Low Dat Pro Fac Was Fac Low Low Fac Fac Upp Upp Res Combat Hostiles Destroyed 54 | . . 5 . 1 12 4 2 12 . 2 8 . 3 1 . 1 . 2 . 1 Guns 36 | . . 5 . 1 10 4 2 8 . 2 1 . 1 . . . . 2 . . Cannons 13 | . . . . . 1 . . . . . 7 . 2 1 . 1 . . . 1 AOE 3 | . . . . . . . . 3 . . . . . . . . . . . . Classes Destroyed 15 | . . 4 . . 5 . 1 1 . . 1 . 2 . . . . . . 1 Worker 7 | . . . . . 1 1 . . . . 2 . 2 . . 1 . . . . Builder 7 | . . 1 . . 1 2 . . . . 1 . 2 . . . . . . . Tunneler 1 | . . 1 . . . . . . . . . . . . . . . . . . Hauler 1 | . . . . . . . . . . . . . 1 . . . . . . . Recycler 2 | . . . . . . . . . . . . . 2 . . . . . . . Operator 1 | . . 1 . . . . . . . . . . . . . . . . . . Swarmer 11 | . . . . . 4 . . 1 . 2 4 . . . . . . . . . Grunt 18 | . . 5 . 1 2 . 1 6 . . . . . 1 . . . 2 . . Brawler 2 | . . . . . . . . 2 . . . . . . . . . . . . Duelist 3 | . . . . . . . 1 2 . . . . . . . . . . . . Sentry 8 | . . . . . 2 2 . 1 . . 1 . 1 . . 1 . . . . Specialist 2 | . . . . . 2 . . . . . . . . . . . . . . . Hunter 6 | . . . . . 2 2 . . . . 2 . . . . . . . . . Programmer 3 | . . . . . . . . . . . 1 . 2 . . . . . . . Heavy 1 | . . . . . . . . . . . . . . . . . . . . 1 Best Kill Streak 5 | . . 2 . 1 4 3 1 5 . 2 4 . 2 1 . 2 . 2 . 1 Combat Bots Only 5 | . . 2 . 1 4 2 1 5 . 2 4 . 1 1 . 1 . 2 . 1 Max Kills in Single Turn 2 | . . 1 . 1 2 1 1 1 . 1 1 . 1 1 . 2 . 1 . 1 Gunslinging 1 | . . . . . 1 . . . . . . . . . . . . . . . Exploded 1 | . . . . . . . . 1 . . . . . . . . . . . . Melee . | . . . . . . . . . . . . . . . . . . . . . Uniques/NPCs Destroyed . | . . . . . . . . . . . . . . . . . . . . . Combat | -11 -10 -10 -10 -9 -8 -7 -7 -7 -7 -6 -6 -6 -6 -6 -6 -5 -4 -4 -4 -3 -------- Run | Yrd Mat Min Exi Min Mat Fac Low Low Dat Pro Fac Was Fac Low Low Fac Fac Upp Upp Res Hostile Shots Fired 1121 | . 1 54 . 2 157 132 10 88 . 133 260 . 15 13 49 4 . 14 . 189 Missed 327 | . 1 10 . 1 41 47 2 31 . 32 70 . 4 5 21 . . 5 . 57 Damage Taken 12316 | . . 560 . 13 1638 921 237 1250 . 1019 2570 . 127 170 342 98 . 194 . 3177 Core 2952 | . . 78 . . 255 141 4 239 . 259 544 . 14 . 27 22 . 54 . 1315 Absorbed by Shields . | . . . . . . . . . . . . . . . . . . . . . Core Remaining (%) 64 | 100 . . . 68 53 . . . . 8 . . . . 31 97 . . 95 . Volleys Fired 255 | . . 38 . 1 52 27 8 44 . 13 41 . 6 1 1 2 . 7 . 14 Largest 3 | . . 2 . 2 2 2 2 2 . 2 2 . 2 2 2 3 . 3 . 3 Hottest 134 | . . 130 . 130 130 56 115 121 . 121 106 . 101 101 101 134 . 134 . 134 Shots Fired 476 | . . 71 . 2 101 50 16 69 . 20 72 . 15 3 2 6 . 21 . 28 Gun 343 | . . 71 . 2 88 50 16 61 . 20 3 . 9 . . 2 . 7 . 14 Cannon 125 | . . . . . 13 . . . . . 69 . 6 3 2 4 . 14 . 14 Launcher 8 | . . . . . . . . 8 . . . . . . . . . . . . Special . | . . . . . . . . . . . . . . . . . . . . . Kinetic 256 | . . 32 . . 16 50 . 8 . 4 72 . 14 3 2 6 . 21 . 28 Thermal 170 | . . 32 . 2 85 . 8 28 . 15 . . . . . . . . . . Explosive 4 | . . . . . . . . 4 . . . . . . . . . . . . Electromagnetic 46 | . . 7 . . . . 8 29 . 1 . . 1 . . . . . . . Robot Hit Streak 18 | . . 13 . 1 7 8 18 17 . 7 10 . 10 8 . 2 . 5 . 12 Robot Miss Streak 10 | . . 2 . . 3 4 4 2 . 5 10 . 3 . 2 1 . 1 . 4 Penetration Max . | . . . . . . . . . . . . . . . . . . . . . Secondary Targets 6 | . . . . . 2 . . 2 . 2 . . . . . . . . . . Max Gunslinging Chain 1 | . . . . . 1 . . 1 . 1 . . . . . . . . . . Shots Hit Robots 351 | . . 48 . 1 63 42 13 53 . 14 48 . 30 1 . 3 . 13 . 22 Core Hits 184 | . . 16 . 1 24 25 13 34 . 7 29 . 17 1 . 3 . 6 . 8 Critical Kills 1 | . . 1 . . . . . . . . . . . . . . . . . . Critical Parts Destroyed . | . . . . . . . . . . . . . . . . . . . . . Critical Strikes 15 | . . 1 . . 5 . . 2 . . 4 . 2 . . 1 . . . . Burn 6 | . . . . . 4 . . 2 . . . . . . . . . . . . Destroy 1 | . . 1 . . . . . . . . . . . . . . . . . . Blast 6 | . . . . . 1 . . . . . 4 . . . . 1 . . . . Impale 2 | . . . . . . . . . . . . . 2 . . . . . . . Melee Attacks 27 | . . . . . . . . . . . 6 . 21 . . . . . . . Impact . | . . . . . . . . . . . . . . . . . . . . . Slashing . | . . . . . . . . . . . . . . . . . . . . . Piercing 27 | . . . . . . . . . . . 6 . 21 . . . . . . . Sneak Attacks 12 | . . . . . . . . . . . 4 . 8 . . . . . . . Combat Hostiles . | . . . . . . . . . . . . . . . . . . . . . Follow-up Attacks . | . . . . . . . . . . . . . . . . . . . . . Damage Inflicted 7674 | . . 669 . 15 1060 663 230 1213 . 208 1586 . 1068 31 . 117 . 292 . 522 Guns 3842 | . . 634 . 15 886 583 230 692 . 207 28 . 175 . . 26 . 147 . 219 Cannons 1933 | . . . . . 145 . . . . . 1096 . 153 31 . 91 . 145 . 272 Explosions 836 | . . 35 . . . 80 . 521 . . 200 . . . . . . . . . Melee 1002 | . . . . . . . . . . . 262 . 740 . . . . . . . Ramming 61 | . . . . . 29 . . . . 1 . . . . . . . . . 31 Kinetic 3584 | . . 315 . . 166 583 . 103 . 47 1124 . 315 31 . 117 . 292 . 491 Thermal 1904 | . . 269 . 15 865 80 132 383 . 160 . . . . . . . . . . Explosive 564 | . . . . . . . . 364 . . 200 . . . . . . . . . Electromagnetic 559 | . . 85 . . . . 98 363 . . . . 13 . . . . . . . Impact . | . . . . . . . . . . . . . . . . . . . . . Slashing . | . . . . . . . . . . . . . . . . . . . . . Piercing 1002 | . . . . . . . . . . . 262 . 740 . . . . . . . Highest Corruption 32 | . . . . . . 2 2 6 6 6 3 13 32 32 32 . . . . 24 Average Corruption 11 | . . . . . . 2 2 4 6 6 2 8 15 32 32 . . . . 8 Corruption Purged . | . . . . . . . . . . . . . . . . . . . . . Corruption Blocked . | . . . . . . . . . . . . . . . . . . . . . Effects 133 | . . . . . . 1 2 18 3 10 2 1 62 22 5 . . . . 7 Message Errors 36 | . . . . . . . . 9 . 3 . . 15 7 1 . . . . 1 Matter Fused 33 | . . . . . . . 1 1 1 3 1 1 19 5 . . . . . 1 Heat Flow Errors 17 | . . . . . . 1 1 2 . 1 . . 9 3 . . . . . . Energy Discharges 11 | . . . . . . . . . 1 . . . 9 1 . . . . . . Parts Rejected 2 | . . . . . . . . 1 . . . . . . 1 . . . . . Parts Fused 3 | . . . . . . . . . . . . . 1 1 1 . . . . . Data Loss (minor) 8 | . . . . . . . . 1 1 . . . 4 1 1 . . . . . Data Loss (major) 6 | . . . . . . . . . . 3 1 . 1 . . . . . . 1 Misfires 6 | . . . . . . . . 1 . . . . 3 2 . . . . . . Alerts 1 | . . . . . . . . 1 . . . . . . . . . . . . Misdirections 5 | . . . . . . . . . . . . . 1 1 1 . . . . 2 Weapon Failures 5 | . . . . . . . . 2 . . . . . 1 . . . . . 2 Overload Shots . | . . . . . . . . . . . . . . . . . . . . . Overflow Damage 497 | . . . . . . 164 . 23 . . 149 . 161 . . . . . . . Projectiles 56 | . . . . . . . . . . . 26 . 30 . . . . . . . Explosions 239 | . . . . . . 164 . 23 . . 52 . . . . . . . . . Melee 202 | . . . . . . . . . . . 71 . 131 . . . . . . . Knockbacks 32 | . . . . . 4 . . . . . 24 . 1 . . . . 2 . 1 Impact 1 | . . . . . 1 . . . . . . . . . . . . . . . Kinetic 29 | . . . . . 3 . . . . . 22 . 1 . . . . 2 . 1 Secondary 2 | . . . . . . . . . . . 2 . . . . . . . . . Self-Inflicted Damage 322 | . . . . . 14 194 . 101 . . . . . . . . . . . 13 Shots 6 | . . . . . . 2 . 4 . . . . . . . . . . . . Rammed 14 | . . . . . 3 . . . . 1 . . . . . . . . . 10 Targets Rammed 14 | . . . . . 3 . . . . 1 . . . . . . . . . 10 Kicked . | . . . . . . . . . . . . . . . . . . . . . Crushed . | . . . . . . . . . . . . . . . . . . . . . Highest Temperature 453 | . . 228 . 69 372 119 97 169 . 433 453 . 249 143 . 8 . 15 . . Average Temperature 115 | . . 70 . 37 103 42 26 50 . 164 206 . 107 65 . 7 . 6 . . Received Heat Transfer 2047 | . . 354 . 9 351 108 27 432 . 283 234 . 18 81 12 18 . 45 . 75 Effects 14 | . . . . . 1 . . . . 1 12 . . . . . . . . . Shutdowns 4 | . . . . . . . . . . 1 3 . . . . . . . . . Energy Bleed 3 | . . . . . 1 . . . . . 2 . . . . . . . . . Short Circuit 2 | . . . . . . . . . . . 2 . . . . . . . . . Damage (minor) 1 | . . . . . . . . . . . 1 . . . . . . . . . Damage (major) 4 | . . . . . . . . . . . 4 . . . . . . . . . Siege Activations . | . . . . . . . . . . . . . . . . . . . . . Robots Corrupted 1 | . . . . . . . . 1 . . . . . . . . . . . . Combat Hostiles 1 | . . . . . . . . 1 . . . . . . . . . . . . Parts Fried . | . . . . . . . . . . . . . . . . . . . . . Impact Corruptions . | . . . . . . . . . . . . . . . . . . . . . Robots Melted 1 | . . . . . 1 . . . . . . . . . . . . . . . Combat Hostiles 1 | . . . . . 1 . . . . . . . . . . . . . . . Parts Melted 4 | . . . . . 2 . . 2 . . . . . . . . . . . . Heat Transferred 4636 | . . 534 . 37 2442 50 165 1062 . 346 . . . . . . . . . . Parts Sabotaged . | . . . . . . . . . . . . . . . . . . . . . Parts Stolen . | . . . . . . . . . . . . . . . . . . . . . Parts Stripped . | . . . . . . . . . . . . . . . . . . . . . Power Chain Reactions 2 | . . 1 . . . . . 1 . . . . . . . . . . . . Alert | -11 -10 -10 -10 -9 -8 -7 -7 -7 -7 -6 -6 -6 -6 -6 -6 -5 -4 -4 -4 -3 ------- Run | Yrd Mat Min Exi Min Mat Fac Low Low Dat Pro Fac Was Fac Low Low Fac Fac Upp Upp Res Peak Influence 621 | . 40 128 . 75 350 144 . . . . 621 67 83 . . 72 47 . . 75 Initial 621 | . . 15 . . 29 116 . . . . 621 43 46 . . 30 35 . . 48 Average 128 | . 15 53 . 28 163 85 . . . . 423 56 39 . . 51 44 . . 38 Maximum Alert Level 2 | . . . . . 1 . . . . . 2 . . . . . . . . . Low Security (%) 78 | . 100 100 . 100 62 100 . . . . . 100 100 . . 100 100 . . 100 Level 1 13 | . . . . . 37 . . . . . 52 . . . . . . . . . Level 2 7 | . . . . . . . . . . . 47 . . . . . . . . . Level 3 . | . . . . . . . . . . . . . . . . . . . . . Level 4 . | . . . . . . . . . . . . . . . . . . . . . Level 5 . | . . . . . . . . . . . . . . . . . . . . . High Security . | . . . . . . . . . . . . . . . . . . . . . Max Security . | . . . . . . . . . . . . . . . . . . . . . Squads Dispatched 21 | . . . . 1 6 3 . 1 . . 4 . 3 . . . . . . 3 Investigation 5 | . . . . 1 1 1 . . . . 2 . . . . . . . . . Extermination 4 | . . . . . . 1 . . . . 1 . 2 . . . . . . . Reinforcement 11 | . . . . . 5 1 . . . . 1 . 1 . . . . . . 3 Assault 1 | . . . . . . . . 1 . . . . . . . . . . . . Garrison . | . . . . . . . . . . . . . . . . . . . . . Intercept . | . . . . . . . . . . . . . . . . . . . . . Searches Triggered 1 | . . . . . . . . . . . 1 . . . . . . . . . Construction Impeded 1 | . . . . . . 1 . . . . . . . . . . . . . . Haulers Reinforced . | . . . . . . . . . . . . . . . . . . . . . Active Scanning Responses . | . . . . . . . . . . . . . . . . . . . . . Cargo Convoy Interrupts . | . . . . . . . . . . . . . . . . . . . . . Stealth | -11 -10 -10 -10 -9 -8 -7 -7 -7 -7 -6 -6 -6 -6 -6 -6 -5 -4 -4 -4 -3 --------- Run | Yrd Mat Min Exi Min Mat Fac Low Low Dat Pro Fac Was Fac Low Low Fac Fac Upp Upp Res Distress Signals 6 | . 1 . . . 1 . . . . 1 3 . . . . . . . . . Communications Jammed . | . . . . . . . . . . . . . . . . . . . . . Distress Signals . | . . . . . . . . . . . . . . . . . . . . . Times Spotted 149 | . 4 7 . 8 27 6 4 19 . 12 26 3 9 5 5 1 1 3 . 9 Peak Tracking Total 9 | . 3 2 . 3 7 3 3 5 . 7 9 3 2 4 4 1 1 3 . 7 Tactical Retreats 18 | . . 2 . 1 3 . 2 3 . 1 5 . . . 1 . . . . . Traps | -11 -10 -10 -10 -9 -8 -7 -7 -7 -7 -6 -6 -6 -6 -6 -6 -5 -4 -4 -4 -3 ------- Run | Yrd Mat Min Exi Min Mat Fac Low Low Dat Pro Fac Was Fac Low Low Fac Fac Upp Upp Res Traps Triggered 10 | . . . . . 1 2 . . . . 1 . 4 . . . 1 . . 1 Indirectly . | . . . . . . . . . . . . . . . . . . . . . Trap Hack Attempts . | . . . . . . . . . . . . . . . . . . . . . Triggered . | . . . . . . . . . . . . . . . . . . . . . Disarmed . | . . . . . . . . . . . . . . . . . . . . . Reprogrammed . | . . . . . . . . . . . . . . . . . . . . . Reused . | . . . . . . . . . . . . . . . . . . . . . Traps Extracted . | . . . . . . . . . . . . . . . . . . . . . Installed . | . . . . . . . . . . . . . . . . . . . . . Triggered 4 | . . . . . . . . 2 . 1 . . . 1 . . . . . . Machines | -11 -10 -10 -10 -9 -8 -7 -7 -7 -7 -6 -6 -6 -6 -6 -6 -5 -4 -4 -4 -3 ---------- Run | Yrd Mat Min Exi Min Mat Fac Low Low Dat Pro Fac Was Fac Low Low Fac Fac Upp Upp Res Machines Disabled 8 | . . . . . . 3 . 1 . . 3 . 1 . . . . . . . Max in Single Turn 2 | . . . . . . 2 . 1 . . 2 . 1 . . . . . . . Garrison Access 3 | . . . . . . . . . . . . . 1 . . . 1 . . 1 Machines Repaired . | . . . . . . . . . . . . . . . . . . . . . Machines Dismantled . | . . . . . . . . . . . . . . . . . . . . . Machines Sabotaged . | . . . . . . . . . . . . . . . . . . . . . Overloaded Fab Kills . | . . . . . . . . . . . . . . . . . . . . . Hacking | -11 -10 -10 -10 -9 -8 -7 -7 -7 -7 -6 -6 -6 -6 -6 -6 -5 -4 -4 -4 -3 --------- Run | Yrd Mat Min Exi Min Mat Fac Low Low Dat Pro Fac Was Fac Low Low Fac Fac Upp Upp Res Machines Accessed 27 | . 2 . 1 1 2 2 . . 4 . 6 . 6 . . . 2 . . 1 Terminals 16 | . 2 . . . 2 2 . . . . 6 . 3 . . . 1 . . . Fabricators . | . . . . . . . . . . . . . . . . . . . . . Repair Stations . | . . . . . . . . . . . . . . . . . . . . . Recycling Units 2 | . . . . . . . . . . . . . 2 . . . . . . . Scanalyzers . | . . . . . . . . . . . . . . . . . . . . . Garrison Access 3 | . . . . . . . . . . . . . 1 . . . 1 . . 1 Total Hacks 73 | . 8 . 1 1 5 3 . . 25 . 13 . 10 . . . 5 . . 2 Successful 40 | . 4 . 1 1 . . . . 25 . 2 . 4 . . . 2 . . 1 Failed 33 | . 4 . . . 5 3 . . . . 11 . 6 . . . 3 . . 1 Catastrophic 13 | . 1 . . . . 2 . . . . 5 . 4 . . . 1 . . . Database Lockouts . | . . . . . . . . . . . . . . . . . . . . . Manual 39 | . 8 . 1 . 5 3 . . . . 13 . 6 . . . 3 . . . Terminals 38 | . 8 . . . 5 3 . . . . 13 . 6 . . . 3 . . . Fabricators . | . . . . . . . . . . . . . . . . . . . . . Repair Stations . | . . . . . . . . . . . . . . . . . . . . . Recycling Units 2 | . . . . . . . . . . . . . 2 . . . . . . . Scanalyzers . | . . . . . . . . . . . . . . . . . . . . . Garrison Access 6 | . . . . . . . . . . . . . 2 . . . 2 . . 2 Terminal Hacks 30 | . 1 . 1 1 . . . . 25 . 2 . . . . . . . . . Record 11 | . . . . . . . . . 11 . . . . . . . . . . . Part Schematic 8 | . . . . . . . . . 8 . . . . . . . . . . . Robot Schematic 3 | . . . . . . . . . 3 . . . . . . . . . . . Prototype ID Bank 3 | . . . . . . . . . 3 . . . . . . . . . . . Open Door 1 | . . . . 1 . . . . . . . . . . . . . . . . Branch Access Points 1 | . 1 . . . . . . . . . . . . . . . . . . . Unreport Threat 2 | . . . . . . . . . . . 2 . . . . . . . . . Derelict Proto ID Bank 1 | . . . 1 . . . . . . . . . . . . . . . . . Fabricator Hacks . | . . . . . . . . . . . . . . . . . . . . . Repair Station Hacks . | . . . . . . . . . . . . . . . . . . . . . Recycling Unit Hacks 2 | . . . . . . . . . . . . . 2 . . . . . . . Retrieve Matter 2 | . . . . . . . . . . . . . 2 . . . . . . . Scanalyzer . | . . . . . . . . . . . . . . . . . . . . . Garrison Access Hacks 3 | . . . . . . . . . . . . . 1 . . . 1 . . 1 Seal Access 3 | . . . . . . . . . . . . . 1 . . . 1 . . 1 Unauthorized Hacks 5 | . 3 . . . . . . . . . . . 1 . . . 1 . . . Terminals 5 | . 3 . . . . . . . . . . . 1 . . . 1 . . . Assimilate 1 | . 1 . . . . . . . . . . . . . . . . . . . Botnet 4 | . 2 . . . . . . . . . . . 1 . . . 1 . . . Fabricators . | . . . . . . . . . . . . . . . . . . . . . Repair Stations . | . . . . . . . . . . . . . . . . . . . . . Recycling Units . | . . . . . . . . . . . . . . . . . . . . . Scanalyzers . | . . . . . . . . . . . . . . . . . . . . . Garrison Access . | . . . . . . . . . . . . . . . . . . . . . Data Cores Recovered . | . . . . . . . . . . . . . . . . . . . . . Used . | . . . . . . . . . . . . . . . . . . . . . Hacking Detections 18 | . 2 . . . 2 2 . . . . 6 . 4 . . . 1 . . 1 Full Trace Events 2 | . . . . . . . . . . . 2 . . . . . . . . . Feedback Events . | . . . . . . . . . . . . . . . . . . . . . Feedback Blocked . | . . . . . . . . . . . . . . . . . . . . . Robot Schematics Acquired 3 | . . . . . . . . . 3 . . . . . . . . . . . Robots Built . | . . . . . . . . . . . . . . . . . . . . . Authchips . | . . . . . . . . . . . . . . . . . . . . . Time . | . . . . . . . . . . . . . . . . . . . . . Total Robot Build Rating . | . . . . . . . . . . . . . . . . . . . . . Part Schematics Acquired 8 | . . . . . . . . . 8 . . . . . . . . . . . Parts Built . | . . . . . . . . . . . . . . . . . . . . . Authchips . | . . . . . . . . . . . . . . . . . . . . . Time . | . . . . . . . . . . . . . . . . . . . . . Total Part Build Rating . | . . . . . . . . . . . . . . . . . . . . . Parts Repaired . | . . . . . . . . . . . . . . . . . . . . . Time . | . . . . . . . . . . . . . . . . . . . . . Parts Recycled . | . . . . . . . . . . . . . . . . . . . . . Recycled Matter . | . . . . . . . . . . . . . . . . . . . . . Retrieved Matter . | . . . . . . . . . . . . . . . . . . . . . Retrieved Components . | . . . . . . . . . . . . . . . . . . . . . Parts Scanalyzed . | . . . . . . . . . . . . . . . . . . . . . Part Schematics Acquired . | . . . . . . . . . . . . . . . . . . . . . Parts Damaged . | . . . . . . . . . . . . . . . . . . . . . Bothacking | -11 -10 -10 -10 -9 -8 -7 -7 -7 -7 -6 -6 -6 -6 -6 -6 -5 -4 -4 -4 -3 ------------ Run | Yrd Mat Min Exi Min Mat Fac Low Low Dat Pro Fac Was Fac Low Low Fac Fac Upp Upp Res Used RIF Installer . | . . . . . . . . . . . . . . . . . . . . . Robots Hacked . | . . . . . . . . . . . . . . . . . . . . . Non-combat . | . . . . . . . . . . . . . . . . . . . . . Combat . | . . . . . . . . . . . . . . . . . . . . . Robot Hacks Applied . | . . . . . . . . . . . . . . . . . . . . . Relay Couplers Released . | . . . . . . . . . . . . . . . . . . . . . Fabnet Peak Effective % . | . . . . . . . . . . . . . . . . . . . . . Robots Rewired 3 | . . . . . . . . 2 . . . . . . . . 1 . . . Allies Hacked . | . . . . . . . . . . . . . . . . . . . . . Hacks Repelled . | . . . . . . . . . . . . . . . . . . . . . Allies | -11 -10 -10 -10 -9 -8 -7 -7 -7 -7 -6 -6 -6 -6 -6 -6 -5 -4 -4 -4 -3 -------- Run | Yrd Mat Min Exi Min Mat Fac Low Low Dat Pro Fac Was Fac Low Low Fac Fac Upp Upp Res Total Allies 5 | . 1 . . . . . . 2 . 1 . . . . . . 1 . . . Largest Group 1 | . 1 1 . . . . . 1 1 1 . . . . . . 1 1 1 . Highest-Rated Group 96 | . 10 10 . . . . . 40 40 96 . . . . . . 49 49 49 . Highest-Rated Ally 96 | . 10 10 . . . . . 40 40 96 . . . . . . 49 49 49 . Total Orders . | . . . . . . . . . . . . . . . . . . . . . Ally Attacks 12 | . . . . . . . . . . 6 . . . . . . . 6 . . Total Damage 414 | . . . . . . . . . . 230 . . . . . . . 184 . . Kills 3 | . . . . . . . . . . 2 . . . . . . . 1 . . Allies Corrupted . | . . . . . . . . . . . . . . . . . . . . . Allies Melted 2 | . . . . . . . . 1 . 1 . . . . . . . . . . Intel | -11 -10 -10 -10 -9 -8 -7 -7 -7 -7 -6 -6 -6 -6 -6 -6 -5 -4 -4 -4 -3 ------- Run | Yrd Mat Min Exi Min Mat Fac Low Low Dat Pro Fac Was Fac Low Low Fac Fac Upp Upp Res Robot Analysis Total . | . . . . . . . . . . . . . . . . . . . . . Derelict Logs Recovered 4 | . . 2 . . . . 1 . . . . . . 1 . . . . . . Drone Launches . | . . . . . . . . . . . . . . . . . . . . . Drone Recoveries . | . . . . . . . . . . . . . . . . . . . . . Exploration | -11 -10 -10 -10 -9 -8 -7 -7 -7 -7 -6 -6 -6 -6 -6 -6 -5 -4 -4 -4 -3 ------------- Run | Yrd Mat Min Exi Min Mat Fac Low Low Dat Pro Fac Was Fac Low Low Fac Fac Upp Upp Res Turns Passed 7788 | . 88 689 347 122 666 784 332 758 162 389 848 35 1378 368 70 57 148 233 65 249 Spaces Moved 5843 | 1 74 519 384 126 415 328 281 380 102 265 806 85 1129 328 60 33 114 175 55 183 Core 352 | . . . . . 2 . . . . 74 204 . . . . . . . . 72 Treads 729 | . . . . . . . . 380 102 191 11 . 44 . . . . . . 1 Legs 323 | 1 74 248 . . . . . . . . . . . . . . . . . . Wheels 4224 | . . 271 384 126 413 328 281 . . . 507 . 1039 328 60 33 114 175 55 110 Hover . | . . . . . . . . . . . . . . . . . . . . . Flight 215 | . . . . . . . . . . . 84 85 46 . . . . . . . Fastest Speed 40 | 120 120 90 90 90 80 80 80 160 160 50 40 40 40 110 110 110 120 120 120 50 Average Speed 103 | 120 120 107 90 90 97 91 90 160 160 129 80 40 100 110 110 115 120 120 120 95 Slowest Speed 500 | 120 120 190 90 100 500 125 95 260 160 160 200 40 160 110 123 125 120 120 120 400 Overloaded Moves . | . . . . . . . . . . . . . . . . . . . . . Propulsion Burnouts . | . . . . . . . . . . . . . . . . . . . . . Robots Hopped . | . . . . . . . . . . . . . . . . . . . . . Cave-ins Triggered 1 | . . . . . . . . . . . . . . . . . . . . 1 Exploration Rate (%) 36 | 1 18 89 87 17 40 9 42 48 74 49 21 87 37 60 14 1 4 41 12 6 Regions Visited 20 Branch Regions 11 Pre-discovered Areas 3 | . . 2 . . . . . . 1 . . . . . . . . . . . Known Exits Taken 3 | . 1 . . . 1 . 1 . . . . . . . . . . . . . Unknown Exits Taken 15 | 1 . 1 1 1 . 1 . 1 1 1 . . 1 1 1 1 1 1 1 . Scrap Searched 11 | . . 1 . . . . 2 2 . 2 . . . 3 . . . 1 . . Spaces Dug . | . . . . . . . . . . . . . . . . . . . . . Terrain Destroyed 111 | . . 3 . . 7 28 . 18 . . 46 . . 2 2 . . 4 . 1 Melee . | . . . . . . . . . . . . . . . . . . . . . Projectile 27 | . . . . . 7 . . . . . 11 . . 2 2 . . 4 . 1 AOE 84 | . . 3 . . . 28 . 18 . . 35 . . . . . . . . . Terrain Rammed . | . . . . . . . . . . . . . . . . . . . . . Walls Destroyed . | . . . . . . . . . . . . . . . . . . . . . Machines Disabled . | . . . . . . . . . . . . . . . . . . . . . Actions | -11 -10 -10 -10 -9 -8 -7 -7 -7 -7 -6 -6 -6 -6 -6 -6 -5 -4 -4 -4 -3 --------- Run | Yrd Mat Min Exi Min Mat Fac Low Low Dat Pro Fac Was Fac Low Low Fac Fac Upp Upp Res Total 7074 | . 73 576 386 133 567 765 342 456 101 294 928 85 1325 334 61 56 125 182 54 231 Wait 634 | . . . . . 59 376 45 1 . . 23 1 114 . . . . . . 15 Move 5824 | . 73 518 383 125 414 327 280 379 101 264 806 84 1128 327 59 32 113 174 54 183 Hop . | . . . . . . . . . . . . . . . . . . . . . Pick Up 84 | . . 5 1 3 12 10 2 2 . 2 13 . 21 4 . 7 . 1 . 1 Fast Attach 58 | . . 3 . . 10 6 1 3 . . 17 . 15 . 1 1 . . . 1 Attach 49 | . . 4 . 1 8 8 2 6 . 6 3 . 2 . . 1 3 . . 5 Detach 6 | . . . . . . . . . . 2 1 . 3 . . . . . . . Swap 38 | . . 3 . . 6 5 2 5 . . 4 . 8 . . 4 . . . 1 Drop 61 | . . 5 2 3 3 6 2 1 . 6 14 . 7 2 . 9 . . . 1 Fire 255 | . . 38 . 1 52 27 8 44 . 13 41 . 6 1 1 2 . 7 . 14 Melee 27 | . . . . . . . . . . . 6 . 21 . . . . . . . Ram 13 | . . . . . 3 . . . . . . . . . . . . . . 10 Kick . | . . . . . . . . . . . . . . . . . . . . . Crush 1 | . . . . . . . . . . 1 . . . . . . . . . . Escape Stasis 8 | . . . . . . . . . . . . . . . . . 8 . . . Rewire 16 | . . . . . . . . 15 . . . . . . . . 1 . . . Trap . | . . . . . . . . . . . . . . . . . . . . . Miscellaneous . | . . . . . . . . . . . . . . . . . . . . . Route ------- -11/Scrapyard -10/Materials -10/Mines (discovered 3 exits: [*Mat x2] / *Exi) -10/Exiles -9/Mines -8/Materials (discovered 2 exits: *Fac / Sto) -7/Factory -7/Lower Caves -7/Lower Caves -7/Data Miner -6/Proximity Caves -6/Factory -6/Waste -6/Factory -6/Lower Caves -6/Lower Caves -5/Factory -4/Factory -4/Upper Caves -4/Upper Caves -3/Research History --------- Turn | Location | Event 1 | -11/Scrapyard | Discovered new exit (range 0) 1 | -11/Scrapyard | Entered Materials 35 | -10/Materials | Identified exit to Mines 89 | -10/Materials | Entered Mines 89 | -10/Mines | Accompanied by 1 ally 156 | -10/Mines | Learned location of Recycling (-8) 262 | -10/Mines | Learned location of Storage (-8) 314 | -10/Mines | Build established: Mutant 334 | -10/Mines | Received a Rocket Launcher from a helpful Derelict 522 | -10/Mines | Learned location of 2 exits from Materials 530 | -10/Mines | Discovered new exit (range 5) 532 | -10/Mines | Discovered new exit (range 12) 691 | -10/Mines | Found a damaged Exp. Sensor Array with a note attached 694 | -10/Mines | Found Prototype Device 773 | -10/Mines | Deemed a non-threat by the Exiles lab entrance 774 | -10/Mines | Discovered new exit (range 5) 778 | -10/Mines | Entered Exiles 800 | -10/Exiles | Met 8R-AWN 809 | -10/Exiles | Build established: Scavenger-Mutant 815 | -10/Exiles | Met EX-HEX 840 | -10/Exiles | Met EX-BIN 852 | -10/Exiles | Aligned with FarCom system 853 | -10/Exiles | Given EX-Vault access code 878 | -10/Exiles | Opened EX-Vault 883 | -10/Exiles | Found 0b10 Alert Chip 905 | -10/Exiles | Warned to stay clear of 0b10 Research branches 930 | -10/Exiles | Met EX-DEC 974 | -10/Exiles | Visited The Gauntlet 1116 | -10/Exiles | Discovered new exit (range 10) 1125 | -10/Exiles | Left Exiles lab with 0b10 Alert Chip 1125 | -10/Exiles | Entered Mines 1202 | -9/Mines | Discovered new exit (range 9) 1213 | -9/Mines | Met a Derelict shopkeep closing up shop 1247 | -9/Mines | Entered Materials 1247 | -8/Materials | Evolved 4 slots: Propulsion x2, Utility x2 1248 | -8/Materials | Identified exit to Factory 1248 | -8/Materials | Identified exit to Storage 1249 | -8/Materials | Identified Exp. Sensor Array 1747 | -8/Materials | Lost 4 parts (1p1n2u) 1830 | -8/Materials | Lost 9 parts (2p2n3u2w) 1913 | -8/Materials | Entered Factory 1913 | -7/Factory | Evolved 2 slots: Utility x2 2300 | -7/Factory | Build established: Scavenger-Skirmisher 2485 | -7/Factory | Lost 4 parts (3n1w) 2553 | -7/Factory | Lost 4 parts (1p1n2w) 2650 | -7/Factory | Discovered new exit (range 15) 2697 | -7/Factory | Entered Lower Caves 2734 | -7/Lower Caves | Identified exit to Lower Caves 2889 | -7/Lower Caves | Encountered a Warlord checkpoint 3029 | -7/Lower Caves | Entered another Lower Caves area 3073 | -7/Lower Caves | Lost 3 parts (2n1w) 3292 | -7/Lower Caves | Attracted the attention of an 0b10 outpost 3335 | -7/Lower Caves | Build established: Scavenger-Mutant 3339 | -7/Lower Caves | Lost 3 parts (1p1u1w) 3420 | -7/Lower Caves | Lost 3 parts (3n) 3428 | -7/Lower Caves | Core integrity fell below 50% 3752 | -7/Lower Caves | Encountered a Warlord checkpoint 3764 | -7/Lower Caves | Discovered new exit (range 11) 3787 | -7/Lower Caves | Entered Data Miner 3787 | -7/Data Miner | Accompanied by 1 ally 3787 | -7/Data Miner | Discovered new exit (range 6) 3818 | -7/Data Miner | Met Data Miner 3875 | -7/Data Miner | Learned location of Section 7 (-2) 3875 | -7/Data Miner | Acquired the access code to Warlord's prototype stash 3899 | -7/Data Miner | Received God Mode back door access code from Data Miner 3949 | -7/Data Miner | Entered Proximity Caves 3949 | -6/Proximity Caves | Accompanied by 1 ally 4114 | -6/Proximity Caves | Spotter reported a threat 4197 | -6/Proximity Caves | Spotter reported a threat 4247 | -6/Proximity Caves | Attracted the attention of an 0b10 checkpoint 4263 | -6/Proximity Caves | Spotter reported a threat 4273 | -6/Proximity Caves | Spotter reported a threat 4299 | -6/Proximity Caves | Core integrity fell below 20% 4331 | -6/Proximity Caves | Discovered new exit (range 8) 4333 | -6/Proximity Caves | Lost 9 parts (1p2n2u4w) 4338 | -6/Proximity Caves | Entered Factory 4338 | -6/Factory | Evolved 2 slots: Utility x2 4688 | -6/Factory | Search patrols dispatched 4778 | -6/Factory | Lost 3 parts (2n1w) 5139 | -6/Factory | Core integrity fell below 50% 5165 | -6/Factory | Lost 9 parts (1p2n6u) 5186 | -6/Factory | Sucked down chute 5186 | -6/Factory | Entered Waste 5194 | -6/Waste | Spotted C-40 Crusher 5201 | -6/Waste | EMP discharged 5201 | -6/Waste | System corruption reached 10% 5206 | -6/Waste | Spotted C-40 Crusher 5206 | -6/Waste | Spotted C-40 Crusher 5216 | -6/Waste | Discovered new exit (range 13) 5221 | -6/Waste | Entered Factory 5695 | -6/Factory | Build established: Scavenger-Skirmisher 6435 | -6/Factory | System corruption reached 30% 6594 | -6/Factory | Discovered new exit (range 5) 6599 | -6/Factory | Entered Lower Caves 6600 | -6/Lower Caves | Encountered a Warlord checkpoint 6800 | -6/Lower Caves | Learned Factory trap positions 6897 | -6/Lower Caves | Build established: Scavenger-Mutant 6956 | -6/Lower Caves | Discovered new exit (range 10) 6967 | -6/Lower Caves | Entered another Lower Caves area 6975 | -6/Lower Caves | Discovered new exit (range 20) 7030 | -6/Lower Caves | Attracted the attention of an 0b10 checkpoint 7037 | -6/Lower Caves | Entered Factory 7037 | -5/Factory | Evolved 2 slots: Utility x1, Weapon x1 7038 | -5/Factory | Loaded intel: 75 trap records 7058 | -5/Factory | Discovered new exit (range 11) 7094 | -5/Factory | Entered another Factory area 7094 | -4/Factory | Evolved 2 slots: Utility x2 7226 | -4/Factory | Discovered new exit (range 6) 7242 | -4/Factory | Entered Upper Caves 7242 | -4/Upper Caves | Accompanied by 1 ally 7431 | -4/Upper Caves | Encountered a Warlord checkpoint 7434 | -4/Upper Caves | Discovered new exit (range 8) 7475 | -4/Upper Caves | Entered another Upper Caves area 7475 | -4/Upper Caves | Accompanied by 1 ally 7529 | -4/Upper Caves | Discovered new exit (range 9) 7536 | -4/Upper Caves | Build established: Scavenger-Tank 7540 | -4/Upper Caves | Entered Research 7540 | -3/Research | Evolved 2 slots: Utility x2 7704 | -3/Research | Crushed by falling debris 7704 | -3/Research | System corruption reached 10% 7744 | -3/Research | Released all parts (4) 7747 | -3/Research | Core integrity fell below 50% 7774 | -3/Research | Lost 20 parts (2p6n8u4w) 7778 | -3/Research | Core integrity fell below 20% 7789 | -3/Research | Destroyed by Y-72 Warden with Railgun Last Messages --------------- 07744_ Released Huge Storage Unit. 07745_ K-01 Serf collects debris. 07746_ Chain reaction triggered in Lgt. Antimatter Reactor. 07746_ U-05 Engineer destroyed. 07746_ H-77 Assassin destroyed. 07746_ Penetrated by Slug. 07748_ K-01 Serf collects debris. 07751_ ALERT: Suspicious intruders detected, dispatching Cutter reinforcements to area. 07762_ M 07780_ Slammed into Y-72 Warden. 07780_ Slug penetrates Wall. 07781_ Slammed into Y-72 Warden. 07783_ Penetrated by Slug. 07784_ Slammed into Y-72 Warden. 07785_ Destabilizing: System corrupted (+1). 07786_ Slammed into Y-72 Warden. 07786_ Destabilizing: System corrupted (+2). 07787_ Slammed into Y-72 Warden. Map ----- +----------------------------------------------------+ | | [ #???????????????????????????????????????????? | | !!![ #???????????????????????????????????????????? | | *""" #???????????????????????????????????????????? | | /### #???????????????????????????????????????????? | | #### ###?????????????????????????????????????????? | | ## * #?????????????????????????????????????????? | | #?????????????????????????????????????????? | | #?????????????????????????????????????????? | | #?????????????????????????????????????????? | | ## #?????????????????????????????????????????? | | ####+###?????????????????????????????????????????? | | #????????????????????????????????????????????????? | | #?????????#######????????????????????????????????? | | #?????????? h???h?????????????????????????????? | | #???????????# #??????????????????????????????????? | | #???????????# #??????????????????????????????????? | | #???????????# #??????????????????????????????????? | | #????+??????# #??????????????????????????????????? | | #???# #?????# #??????????????????????????????????? | | #???# #?????# #??????????????????????????????????? | | #???# #?????# #??????????????????????????????????? | | #???# #?????#p#?????????????#????????????????????? | | #???# #?????# #???????????? #????????????????????? | | #??## ##????# #???????????# ##???????????????????? | | #### ######Y############ #???????????????????? | | p Y p @Y +???????????????????? | | #### ] ######+############ #???????????????????? | | ???#####??? ??????????####???????????????????? | | ????????? #???????????????????????????????? | | ???????# ]#???????????????????????????????? | | ???????# #???????????????????????????????? | | ???????###########???????????????????????????????? | | | | | | | | | | | | | | | | | | | | | | | | | | | | | | | | | | | | | +----------------------------------------------------+ Best States ------------- Heat Dissipation 65 Energy Generation 19 Energy Capacity 315 Matter Stores 400 Matter Capacity 400 Sight Range 22 Robot Scan Range 20 Terrain Scan Range 14 Terrain Scan Density 85 Jamming Range 16 Armor Coverage 600 Evasion (%) 62 Targeting Accuracy 8 Recoil Reduction 3 Offensive Hacking 11 Defensive Hacking 11 Item Schematics ----------------- Combat Drone Bay | -7/Data Miner | Free Lgt. Regenerative Plating | -7/Data Miner | Free Biomechanical Wings | -7/Data Miner | Free Gravity Neutralizer | -7/Data Miner | Free Gui. EMP Blaster | -7/Data Miner | Free Antigrav System | -7/Data Miner | Free Imp. Weapon Cycler | -7/Data Miner | Free Variable Charge Gun | -7/Data Miner | Free Robot Schematics ------------------ G-50 Soldier | -7/Data Miner | Free E-15 Imp | -7/Data Miner | Free R-10 Processor | -7/Data Miner | Free Fabricated ------------ Nothing Alien Tech Used ----------------- None Achievements -------------- None Challenges ------------ None Game ------ Seed ArcWaveBank Manual? 0 Play Time 01:03:25 Cumulative 123.9 hours Start 2025.03.15 @ 16:19:23 End 2025.03.15 @ 18:56:47 Sessions 3 Manual Loads 0 Difficulty Rogue Special Mode None Game No. 184 Rogue 167 Adventurer 15 Explorer 2 Win Type - Total 1 Types 1/0/0/0/0/0/0/0/0 Lore% 22 Gallery% 57 Achievement% 46 Wizard Run 0 Options --------- Layout 0 ASCII 0 Keyboard 0 Movement Arrows Keybinds 0 Fullscreen 1 Font 36/Smallcaps Map View 76x50 Zoom Use 0% Tactical HUD 1 Map Filters NONE Filters NONE Steam 1 RUN: 0fa52a79-1b3b-4e5d-a6f1-875852d7e1c3